{"text_format":"3","workbook":"xlsx","n_sheets":4,"sheets":["Bevásárlólista","Költségvetés lebontása","Teendőlista","Megosztási lista"],"not_rendered":{"charts":2,"images":2,"defined_names":12},"read":"whole","date_system":"1900"}

{"sheet":"Bevásárlólista","index":0,"n_rows":25,"n_cols":8,"rows_kept":25,"merged":[[0,1,0,2],[2,1,2,7],[3,1,3,2],[4,4,6,7]]}
[null,"Vissza az iskolába",null,"tervező"]
[]
[null,"Nyomon követheti a bevásárlás előrehaladását a költségvetési kategória Költségvetés lebontása munkalapon beírt összegeihez képest."]
[null,"Költségvetés összegzése",null,null,{"$f":"\"Vásárlási állapot: (\"&COUNTIFS(Feladatlista[Megvásárolt], \">0\")&\" / \"&COUNTIFS(Feladatlista[Megvásárolandó], \">0\")&\")\"","v":"Vásárlási állapot: (1 / 6)"}]
[null,"Költségvetés",{"v":1500,"d":"1,500.00 Ft"},null,{"$f":"IFERROR(COUNTIFS(Feladatlista[Megvásárolandó],\">0\",Feladatlista[Megvásárolt],\">0\")/MegvásárolandóCikkekÖsszege,0)","v":{"v":0.16666666666666666,"d":"17%"}}]
[null,"Bevásárlólista végösszege",{"$f":"IFERROR(SUM(FeladatlistaVégösszege), \"\")","v":{"v":365,"d":"365.00 Ft"}}]
[null,"Fennmaradó készpénz",{"$f":"IFERROR(C5-C6, \"\")","v":{"v":1135,"d":"1,135.00 Ft"}}]
[null,"Bevásárlólista"]
[null,"Cikk","Kategória","Mennyiség","Megvásárolandó","Költség","Megvásárolt","Teljes költség"]
[null,"Matematika","Tankönyvek",1,1,{"v":55,"d":"55.00 Ft"},1,{"$f":"IFERROR(Feladatlista[Mennyiség]*Feladatlista[Költség], \"\")","v":{"v":55,"d":"55.00 Ft"}}]
[null,"Angol","Tankönyvek",1,1,null,null,{"$f":"IFERROR(Feladatlista[Mennyiség]*Feladatlista[Költség], \"\")","v":0}]
[null,"Iskolatáska","Kellékek",1,null,{"v":30,"d":"30.00 Ft"},null,{"$f":"IFERROR(Feladatlista[Mennyiség]*Feladatlista[Költség], \"\")","v":{"v":30,"d":"30.00 Ft"}}]
[null,"Számológép","Kellékek",1,{"$nulls":3},{"$f":"IFERROR(Feladatlista[Mennyiség]*Feladatlista[Költség], \"\")","v":0}]
[null,"Kiemelőfilcek","Kellékek",3,{"$nulls":3},{"$f":"IFERROR(Feladatlista[Mennyiség]*Feladatlista[Költség], \"\")","v":0}]
[null,"Egyenruha","Ruhák",2,1,{"v":100,"d":"100.00 Ft"},null,{"$f":"IFERROR(Feladatlista[Mennyiség]*Feladatlista[Költség], \"\")","v":{"v":200,"d":"200.00 Ft"}}]
[null,"Ingek","Ruhák",4,{"$nulls":3},{"$f":"IFERROR(Feladatlista[Mennyiség]*Feladatlista[Költség], \"\")","v":0}]
[null,"Pólók","Ruhák",5,{"$nulls":3},{"$f":"IFERROR(Feladatlista[Mennyiség]*Feladatlista[Költség], \"\")","v":0}]
[null,"Rövidnadrág","Ruhák",2,{"$nulls":3},{"$f":"IFERROR(Feladatlista[Mennyiség]*Feladatlista[Költség], \"\")","v":0}]
[null,"Tornacipő","Ruhák",2,1,null,null,{"$f":"IFERROR(Feladatlista[Mennyiség]*Feladatlista[Költség], \"\")","v":0}]
[null,"Zokni","Ruhák",10,{"$nulls":3},{"$f":"IFERROR(Feladatlista[Mennyiség]*Feladatlista[Költség], \"\")","v":0}]
[null,"Tavaszi kabát","Ruhák",1,1,{"v":80,"d":"80.00 Ft"},null,{"$f":"IFERROR(Feladatlista[Mennyiség]*Feladatlista[Költség], \"\")","v":{"v":80,"d":"80.00 Ft"}}]
[null,"Pulóverek","Ruhák",1,{"$nulls":3},{"$f":"IFERROR(Feladatlista[Mennyiség]*Feladatlista[Költség], \"\")","v":0}]
[null,"Melegítőfelsők","Ruhák",1,{"$nulls":3},{"$f":"IFERROR(Feladatlista[Mennyiség]*Feladatlista[Költség], \"\")","v":0}]
[null,"Alsónemű","Ruhák",10,{"$nulls":3},{"$f":"IFERROR(Feladatlista[Mennyiség]*Feladatlista[Költség], \"\")","v":0}]
[null,"Télikabát","Ruhák",1,1,null,null,{"$f":"IFERROR(Feladatlista[Mennyiség]*Feladatlista[Költség], \"\")","v":0}]

{"sheet":"Költségvetés lebontása","index":1,"n_rows":6,"n_cols":3,"rows_kept":6}
[null,"Költségvetés lebontása"]
[null,"Felvehet kategóriákat és költségvetési összegeket, és nyomon követheti azok alakulását a bevásárlólistához képest."]
[null,"Kategória","Teljes költség"]
[null,"Ruhák",{"$f":"IFERROR(SUMIFS(Feladatlista[Teljes költség],Feladatlista[Kategória],Kategória[Kategória]), \"\")","v":{"v":280,"d":"280.00 Ft"}}]
[null,"Kellékek",{"$f":"IFERROR(SUMIFS(Feladatlista[Teljes költség],Feladatlista[Kategória],Kategória[Kategória]), \"\")","v":{"v":30,"d":"30.00 Ft"}}]
[null,"Tankönyvek",{"$f":"IFERROR(SUMIFS(Feladatlista[Teljes költség],Feladatlista[Kategória],Kategória[Kategória]), \"\")","v":{"v":55,"d":"55.00 Ft"}}]

{"sheet":"Teendőlista","index":2,"n_rows":22,"n_cols":3,"rows_kept":22}
[null,"Teendőlista"]
[null,"Nyomon követheti az iskolakezdés előtt elvégzendő tevékenységeket."]
[null,"Kész","Feladat"]
[null,"x","Az összes regisztrációs űrlap kitöltése"]
[null,null,"Iskolai vizsgák ütemezése, ha szükséges"]
[null,null,"A szükséges védőoltások ellenőrzése"]
[null,null,"Adagolási útmutatás beszerzése az orvostól minden szükséges gyógyszerhez"]
[null,null,"Iskolai öltözködési szabályok áttekintése"]
[null,null,"Az iskolai kellékek listájának beszerzése"]
[null,null,"Találkozás a tanárral"]
[null,null,"A tanár által előnyben részesített kommunikációs mód meghatározása (telefon, e-mail, írott üzenet)"]
[null,null,"Az iskola felfedezése a gyermekkel"]
[null,null,"Segítség a gyermeknek az otthoni és a munkahelyi telefonszám, valamint az otthoni cím megjegyzésében"]
[null,null,"Közlekedés megszervezése, biztonságos találkozópont kijelölése, valamint ezek gyakorlása"]
[null,null,"Séta esetén az útvonal gyakorlása gyermekével oda-vissza az iskola és az otthon között"]
[null,null,"Ha másokkal együtt megy a gyermek kocsival iskolába, a gyermek bemutatása az összes ilyen autó sofőrjének"]
[null,null,"Buszozás esetén az időpontok és a buszmegállók meghatározása"]
[null,null,"Gyermekfelügyelet/napközi megszervezése"]
[null,null,"Reggeli, tízórai, ebéd és uzsonna menüjének megtervezése"]
[null,null,"Házi feladat helyének és ütemezésének meghatározása"]
[null,null,"Lefekvési rutin kialakítása legalább két héttel az iskolakezdet előtt"]
[null,null,"Naptár készítése az összes iskolai eseményről és tevékenységről"]

{"sheet":"Megosztási lista","index":3,"n_rows":4,"n_cols":5,"rows_kept":4}
[null,"Megosztási lista",null,null,"Megoszthatja ezt a listát másokkal, így ők is közreműködhetnek rajta. Válassza a jobb felső sarokban a Megosztás elemet, vagy nyomja le az ALT, majd a Y és az U billentyűt. A fájlt a OneDrive-ra mentheti, és elküldheti a hivatkozást ismerőseinek."]
[null,"Név","E-mail-cím","Megosztva?"]
[null,"1. személy","valaki@email.com","Igen"]
[null,"2. személy","valaki@email.com","Nem"]